bitfinex/quotes_ETHUSD_20250630
["timestamp","ask_amount","ask_price","bid_price","bid_amount"]
[1751281028275,6.578,2457.0,2456.8,0.81409328]
[1751281029479,6.578,2457.0,2456.8,4.88439659]
[1751281029983,6.578,2457.0,2456.8,0.81409328]
[1751281031250,6.578,2457.0,2456.6,4.07060092]
[1751281031452,6.578,2457.0,2456.8,4.07033533]
[1751281032379,0.01,2457.0,2456.8,4.07033533]
[1751281038880,0.01,2457.0,2456.6,4.07056908]
[1751281039067,0.01,2457.0,2456.7,4.07048039]
[1751281039264,0.01,2457.0,2456.7,5.00309446]
[1751281039490,0.01,2457.0,2456.8,4.0702971]
[1751281040273,0.01,2457.0,2456.7,5.00300941]
[1751281040995,0.01,2457.0,2456.8,4.07033086]
[1751281041291,0.01,2457.0,2456.7,5.00299826]
[1751281041491,0.01,2457.0,2456.8,0.90735946]
[1751281042464,0.01,2457.0,2456.7,4.07038419]
[1751281043399,4.08000487,2457.0,2456.6,4.0705554]
[1751281043769,0.8175,2456.9,2456.6,4.0705554]
[1751281043979,0.8175,2456.9,2456.5,0.42909124]
[1751281043980,4.88783123,2456.9,2456.5,0.42909124]
[1751281044179,4.88783123,2456.9,2456.5,4.09076143]
[1751281046398,4.88783123,2456.9,2456.5,0.02]
[1751281046716,4.88774279,2456.9,2456.5,4.09076529]
[1751281047003,4.88774279,2456.9,2456.5,0.02]
[1751281047204,4.07035272,2456.8,2456.5,0.02]
[1751281054119,0.8175,2456.9,2456.5,0.02]
[1751281054277,4.07065882,2456.7,2456.5,0.02]
[1751281054602,0.8205,2456.6,2456.5,0.02]
[1751281059408,4.85014793,2456.9,2456.5,4.0908046]
[1751281060079,2.4589,2456.9,2456.6,4.07063194]
[1751281060277,1.679,2456.9,2456.6,4.07063194]
[1751281060481,1.679,2456.9,2456.6,4.07066149]
[1751281060808,1.679,2456.9,2456.6,4.55696764]
[1751281061796,1.679,2456.9,2456.7,4.07049332]
[1751281062315,1.679,2456.9,2456.6,4.55687203]
[1751281063502,1.679,2456.9,2456.6,4.07056588]
[1751281063814,1.679,2456.9,2456.5,4.09073743]
[1751281063982,5.74917819,2456.9,2456.5,4.09073743]
[1751281064612,1.679,2456.9,2456.5,4.09073743]
[1751281064789,1.679,2456.9,2456.7,4.07049464]
[1751281066521,1.679,2456.9,2456.8,4.07033539]
[1751281066688,0.01,2457.0,2456.9,4.07016972]
[1751281069586,0.01,2457.0,2456.8,4.07023561]
[1751281073430,0.01,2457.0,2456.9,4.07016972]
[1751281074912,0.01,2457.0,2456.8,4.0702465]
[1751281077028,0.01,2457.0,2456.9,4.07016972]
[1751281078122,0.01,2457.0,2456.8,4.07022954]
[1751281083340,0.01,2457.0,2456.8,8.14041815]
[1751281083643,0.01,2457.0,2456.9,4.07016972]
[1751281084644,0.01,2457.0,2456.5,10.8005]
[1751281084841,0.01,2457.0,2456.8,4.07033104]
[1751281085039,0.7932,2457.0,2456.8,4.07033104]
[1751281093611,0.01,2457.0,2456.8,4.07033104]
[1751281099439,0.01,2457.0,2456.9,4.07016972]
[1751281099840,0.01,2457.0,2456.8,4.07026084]
[1751281101852,0.01,2457.0,2456.9,4.07016972]
[1751281103953,0.01,2457.0,2456.8,4.07023393]
[1751281104649,0.01,2457.0,2456.9,4.07016972]
[1751281114664,0.01,2457.0,2456.8,4.90092978]
[1751281116162,0.01,2457.0,2456.9,4.07016972]
[1751281117474,0.01,2457.0,2456.9,4.78591216]
[1751281118580,0.01,2457.0,2456.9,4.07016972]
[1751281130970,0.01,2457.0,2456.7,4.07042369]
[1751281131172,0.01,2457.0,2456.8,4.07032726]
[1751281131893,0.01,2457.0,2456.7,4.07050107]
[1751281132192,0.01,2457.0,2456.8,4.07033037]
[1751281133193,0.01,2457.0,2456.7,4.07043569]
[1751281133994,0.01,2457.0,2456.8,4.07032848]
[1751281134382,0.01,2457.0,2456.7,4.07042566]
[1751281136394,0.01,2457.0,2456.8,4.07031654]
[1751281136694,0.01,2457.0,2456.7,4.07042218]
[1751281138495,4.08001606,2457.0,2456.6,8.69544698]
[1751281138694,0.01,2457.0,2456.6,5.42985831]
[1751281138897,0.01,2457.0,2456.7,4.07048832]
[1751281141502,0.01,2457.0,2456.8,4.07033468]
[1751281141802,0.01,2457.0,2456.7,4.07040243]
[1751281144900,0.01,2457.0,2456.7,4.07043537]
[1751281145106,0.01,2457.0,2456.9,4.07016972]
[1751281145403,0.01,2457.0,2456.8,9.70056981]
[1751281146873,0.01,2457.0,2456.8,5.07571073]
[1751281148899,0.01,2457.0,2456.8,5.07572887]
[1751281151275,0.01,2457.0,2456.8,1.00545649]
[1751281151607,0.01,2457.0,2456.8,5.0757779]
[1751281152721,4.08000439,2457.0,2456.6,5.42986377]
[1751281152893,0.01,2457.0,2456.6,4.07059336]
[1751281154107,0.01,2457.0,2456.7,4.07048111]
[1751281154402,0.01,2457.0,2456.6,4.07059336]
[1751281154403,0.01,2457.0,2456.8,4.07025243]
[1751281154809,0.01,2457.0,2456.7,4.07039831]
[1751281156100,4.08000741,2457.0,2456.6,4.07058372]
[1751281156296,0.764,2456.9,2456.5,0.02]
[1751281156522,4.83426082,2456.9,2456.5,0.02]
[1751281156733,0.764,2456.9,2456.5,4.09070055]
[1751281157027,2.44,2456.9,2456.5,4.09076165]
[1751281157190,6.51017523,2456.9,2456.5,4.09076165]
[1751281158325,2.44,2456.9,2456.5,4.09076165]
[1751281158620,2.44,2456.9,2456.6,4.0706629]
[1751281161929,2.44,2456.9,2456.5,4.09074686]
[1751281162099,6.51017616,2456.9,2456.5,4.09074686]
[1751281164035,6.51017616,2456.9,2456.5,0.02]
[1751281164427,6.51017616,2456.9,2456.5,4.09082012]
[1751281165232,6.51017616,2456.9,2456.5,0.02]
[1751281168637,2.44,2456.9,2456.5,4.09074612]
[1751281169129,2.44,2456.9,2456.6,4.07065536]
[1751281170735,2.44,2456.9,2456.6,4.07066677]
[1751281173035,2.44,2456.9,2456.7,4.07048757]
[1751281174737,0.01,2457.0,2456.7,5.9034589]
[1751281174937,0.01,2457.0,2456.8,4.07033539]
[1751281178157,0.7664,2456.9,2456.6,4.07059949]
[1751281181250,0.7664,2456.9,2456.5,0.02]
[1751281181545,0.01,2457.0,2456.5,0.02]
[1751281181546,0.8321,2456.7,2456.5,0.02]
[1751281181870,1.32235013,2456.7,2456.5,0.02]
[1751281182152,0.8321,2456.7,2456.5,0.02]
[1751281183555,4.90262445,2456.7,2456.5,0.02]
[1751281183921,0.8321,2456.7,2456.5,0.02]
[1751281184253,4.90261741,2456.7,2456.5,0.02]
[1751281198848,4.90268344,2456.7,2456.5,0.02]
[1751281199189,4.07066677,2456.6,2456.5,0.02]
[1751281199541,13.12216677,2456.6,2456.5,0.02]
[1751281199742,13.67216677,2456.6,2456.5,0.02]
[1751281200776,23.67216677,2456.6,2456.5,0.02]
[1751281201182,4.62149546,2456.1,2456.0,0.02]
[1751281201479,16.30848171,2456.1,2456.0,0.02]
[1751281201679,5.74640353,2456.2,2456.0,0.02]
[1751281201904,4.07149546,2456.1,2456.0,0.02]
[1751281202390,15.40189546,2456.1,2456.0,0.02]
[1751281202765,23.63589546,2456.1,2456.0,0.02]
[1751281203263,15.40189546,2456.1,2456.0,0.02]
[1751281203462,6.79922536,2456.1,2456.0,0.02]
[1751281203686,11.41089546,2456.1,2456.0,0.02]
[1751281203886,12.30549546,2456.1,2456.0,0.02]
[1751281207506,8.234,2456.1,2456.0,0.02]
[1751281208070,12.30549546,2456.1,2456.0,0.02]
[1751281210611,8.234,2456.1,2456.0,0.02]
[1751281210901,12.30549546,2456.1,2456.0,0.02]
[1751281211104,8.234,2456.1,2456.0,0.02]
[1751281211286,12.30549546,2456.1,2456.0,0.02]
[1751281214703,12.27149546,2456.1,2456.0,0.02]
[1751281215808,8.2,2456.1,2456.0,0.02]
[1751281218007,10.723,2456.4,2456.0,0.02]
[1751281218008,10.173,2456.4,2456.0,0.02]
[1751281218194,1.674,2456.2,2456.1,4.07149437]
[1751281219277,8.233,2456.2,2456.1,4.96670848]
[1751281219473,8.233,2456.2,2456.1,0.89521411]
[1751281220702,8.233,2456.2,2456.0,0.8089]
[1751281221480,8.233,2456.2,2456.0,0.02]
[1751281222580,8.233,2456.2,2456.0,4.09165694]
[1751281222786,8.233,2456.2,2456.0,0.02]
[1751281226222,12.30433873,2456.2,2456.0,0.02]
[1751281226698,8.233,2456.2,2456.0,0.02]
[1751281227795,12.30433865,2456.2,2456.0,0.02]
[1751281227988,8.233,2456.2,2456.0,0.02]
[1751281229392,4.07149546,2456.1,2456.0,0.02]
[1751281233292,8.70924991,2456.2,2456.0,0.02]
[1751281233496,6.559,2456.1,2456.0,0.02]
[1751281234122,10.63049546,2456.1,2456.0,0.02]
[1751281235118,10.64049546,2456.1,2456.0,0.02]
[1751281236526,0.01,2456.1,2456.0,0.02]
[1751281237010,0.01,2456.1,2456.0,4.58460726]
[1751281237725,0.01,2456.1,2456.0,0.51294603]
[1751281237895,0.01,2456.1,2456.0,0.02]
[1751281238697,0.01,2456.1,2456.0,4.09166123]
[1751281239635,0.01,2456.1,2456.0,0.02]
[1751281244462,0.01,2456.1,2456.0,4.09166123]
[1751281252160,0.01,2456.1,2456.0,4.84806123]
[1751281252322,0.01,2456.1,2456.0,48.75762228]
[1751281253254,0.01,2456.1,2456.0,45.14812228]
[1751281253458,0.01,2456.1,2456.0,37.98679028]
[1751281253665,0.01,2456.1,2456.0,22.93620128]
[1751281263271,0.01,2456.1,2456.0,47.35150428]
[1751281266375,0.01,2456.1,2456.0,46.38831528]
[1751281268459,0.01,2456.1,2456.0,44.38588828]
[1751281268958,0.01,2456.1,2456.0,22.93620128]
[1751281269359,0.01,2456.1,2456.0,33.26140128]
[1751281270383,0.01,2456.1,2456.0,32.90793228]
[1751281271089,0.01,2456.1,2456.0,25.49905528]
[1751281271384,0.01,2456.1,2456.0,22.17780128]
[1751281281986,0.01,2456.1,2456.0,22.95170128]
[1751281283202,0.01,2456.1,2456.0,22.95070128]
[1751281288609,0.01,2456.1,2456.0,22.17680128]
[1751281307904,0.01,2456.1,2456.0,26.8034707]
[1751281309287,0.01,2456.1,2456.0,31.43014012]
[1751281309494,0.01,2456.1,2456.0,59.68995312]
[1751281309724,0.01,2456.1,2456.0,53.3178837]
[1751281310021,0.01,2456.1,2456.0,47.3116407]
[1751281310521,0.01,2456.1,2456.0,47.7116407]
[1751281310721,0.01,2456.1,2456.0,39.9855607]
[1751281311223,0.01,2456.1,2456.0,44.61223012]
[1751281311418,0.01,2456.1,2456.0,48.9856607]
[1751281311612,0.01,2456.1,2456.0,37.1787707]
[1751281311808,0.01,2456.1,2456.0,38.91356113]
[1751281312405,0.01,2456.1,2456.0,29.30936113]
[1751281312726,0.01,2456.1,2456.0,38.75026113]
[1751281313721,0.01,2456.1,2456.0,29.30936113]
[1751281313889,0.01,2456.1,2456.0,38.75026113]
[1751281317434,4.83729546,2456.1,2456.0,0.02]
[1751281318799,5.38729546,2456.1,2456.0,0.02]
[1751281319119,15.38729546,2456.1,2456.0,0.02]
[1751281320035,5.38729546,2456.1,2456.0,0.02]
[1751281320235,18.15391909,2456.1,2456.0,0.02]
[1751281322335,5.45172702,2455.9,2455.8,0.02]
[1751281322542,28.36718687,2455.9,2455.8,0.02]
[1751281323606,29.34109884,2455.9,2455.8,0.02]
[1751281323834,33.35442308,2455.9,2455.8,0.02]
[1751281325512,32.38051111,2455.9,2455.8,0.02]
[1751281326409,32.50777466,2455.9,2455.8,0.02]
[1751281329253,25.95377466,2455.9,2455.8,0.02]
[1751281329464,34.18177466,2455.9,2455.8,0.02]
[1751281330463,34.05451111,2455.9,2455.8,0.02]
[1751281332244,34.18177692,2455.9,2455.8,0.02]
[1751281332468,34.05451111,2455.9,2455.8,0.02]
[1751281333755,41.88451111,2455.9,2455.8,0.02]
[1751281334470,35.52305126,2455.9,2455.8,0.02]
[1751281336474,26.74505126,2455.9,2455.8,0.02]
[1751281336625,34.97305126,2455.9,2455.8,0.02]
[1751281336831,41.33451111,2455.9,2455.8,0.02]
[1751281337040,41.88451111,2455.9,2455.8,0.02]
[1751281339325,42.01177579,2455.9,2455.8,0.02]
[1751281340241,41.88451111,2455.9,2455.8,0.02]
[1751281340562,42.0117751,2455.9,2455.8,0.02]
[1751281342975,42.98120874,2455.9,2455.8,0.02]
[1751281345546,44.20029446,2455.9,2455.8,0.02]
[1751281346257,42.98122467,2455.9,2455.8,0.02]
[1751281347249,44.60580414,2455.9,2455.8,0.02]
[1751281347449,42.98122467,2455.9,2455.8,0.02]
[1751281348174,45.41809387,2455.9,2455.8,0.02]
[1751281348694,15.43105865,2455.7,2455.6,0.02]
[1751281348847,28.72327764,2455.7,2455.6,0.02]
[1751281349177,27.10109645,2455.7,2455.6,0.02]
[1751281349483,28.72405075,2455.7,2455.6,0.02]
[1751281350397,27.10109645,2455.7,2455.6,0.02]
[1751281350691,29.53436824,2455.7,2455.6,0.02]
[1751281352709,26.9025563,2455.7,2455.6,0.02]
[1751281352894,37.57171249,2455.7,2455.6,0.02]
[1751281353295,29.33771249,2455.7,2455.6,0.02]
[1751281353603,35.1365563,2455.7,2455.6,0.02]
[1751281354577,22.21309645,2455.7,2455.6,0.02]
[1751281354914,28.77509645,2455.7,2455.6,0.02]
[1751281355206,28.77809645,2455.7,2455.6,0.02]
[1751281355403,30.40136612,2455.7,2455.6,0.02]
[1751281356604,28.77809645,2455.7,2455.6,0.02]
[1751281357102,23.83658775,2455.7,2455.6,0.02]
[1751281357286,28.77809645,2455.7,2455.6,0.02]
[1751281359213,28.65381653,2455.7,2455.6,0.02]
[1751281359780,31.08900228,2455.7,2455.6,0.02]
[1751281360200,28.65381653,2455.7,2455.6,0.02]
[1751281360509,28.78110295,2455.7,2455.6,0.02]
[1751281360686,28.65381653,2455.7,2455.6,0.02]
[1751281360885,28.78110295,2455.7,2455.6,0.02]
[1751281361601,28.65381653,2455.7,2455.6,0.02]
[1751281362610,33.06710064,2455.7,2455.6,0.02]
[1751281362914,28.65381653,2455.7,2455.6,0.02]
[1751281363791,28.78110064,2455.7,2455.6,0.02]
[1751281364403,31.21628639,2455.7,2455.6,0.02]
[1751281369991,15.40362448,2455.6,2455.5,0.02]
[1751281370316,18.79418011,2455.6,2455.5,0.02]
[1751281371285,21.23337502,2455.6,2455.5,0.02]
[1751281371485,25.15563996,2455.6,2455.5,0.02]
[1751281374330,7.46288011,2455.6,2455.5,0.02]
[1751281374512,6.71775812,2455.6,2455.5,0.02]
[1751281374716,24.91300957,2455.6,2455.5,0.02]
[1751281375013,25.46400957,2455.6,2455.5,0.02]
[1751281375624,26.27767805,2455.6,2455.5,0.02]
[1751281375918,23.83675812,2455.6,2455.5,0.02]
[1751281376218,27.28194524,2455.6,2455.5,0.02]
[1751281376804,29.72286517,2455.6,2455.5,0.02]
[1751281379990,28.90968566,2455.6,2455.5,0.02]
[1751281382140,39.09068566,2455.6,2455.5,0.02]
[1751281382719,49.73814551,2455.6,2455.5,0.02]
[1751281382918,46.26994551,2455.6,2455.5,0.02]
[1751281383237,46.26594551,2455.6,2455.5,0.02]
[1751281383437,39.90448566,2455.6,2455.5,0.02]
[1751281384308,38.27674524,2455.6,2455.5,0.02]
[1751281384612,39.08956176,2455.6,2455.5,0.02]
[1751281386642,37.46194524,2455.6,2455.5,0.02]
[1751281387185,47.08122502,2455.6,2455.5,0.02]
[1751281387638,47.08122502,2455.6,2455.3,0.02]
[1751281387639,45.43955618,2455.4,2455.3,0.02]
[1751281387830,55.42172461,2455.4,2455.3,0.02]
[1751281389753,14.62431551,2454.4,2454.1,0.781]
[1751281389954,22.87931551,2454.4,2454.1,0.781]
[1751281392426,14.62431551,2454.4,2454.3,0.7829]
[1751281392647,4.07431551,2454.4,2454.3,0.7829]
[1751281392821,12.33631551,2454.4,2454.3,0.7829]
[1751281393021,8.264,2454.4,2454.3,0.7829]
[1751281393217,12.33831551,2454.4,2454.3,0.7829]
[1751281393422,11.90411208,2454.6,2454.3,0.7829]
[1751281393423,4.07420178,2454.5,2454.3,0.7829]
[1751281393643,8.264,2454.4,2454.3,0.7829]
[1751281394042,12.33831551,2454.4,2454.3,0.7829]
[1751281395059,13.31393891,2454.4,2454.3,0.7829]
[1751281395558,12.33831551,2454.4,2454.3,0.7829]
[1751281400960,12.88831551,2454.4,2454.3,0.7829]
[1751281401769,14.58456724,2454.4,2454.3,0.02]
[1751281402061,15.55913063,2454.4,2454.3,0.02]
[1751281402266,25.55913063,2454.4,2454.3,0.02]
[1751281404278,5.5988789,2454.4,2454.3,0.02]
[1751281404435,12.88731551,2454.4,2454.3,0.02]
[1751281412935,13.01463782,2454.4,2454.3,0.02]
[1751281413272,12.88731551,2454.4,2454.3,0.02]
[1751281427280,23.68631551,2454.4,2454.3,0.02]
[1751281427470,27.69963975,2454.4,2454.3,0.02]
[1751281428979,35.52963975,2454.4,2454.3,0.02]
[1751281431296,39.81563975,2454.4,2454.3,0.02]
[1751281433307,31.55263975,2454.4,2454.3,0.02]
[1751281433600,35.52763975,2454.4,2454.3,0.02]
[1751281434899,27.26663975,2454.4,2454.3,0.02]
[1751281435203,35.52763975,2454.4,2454.3,0.02]
[1751281437815,17.59963975,2454.4,2454.3,0.02]
[1751281438123,20.16531551,2454.4,2454.3,0.02]
[1751281438281,30.71531551,2454.4,2454.3,0.02]
[1751281438480,31.51071551,2454.4,2454.3,0.02]
[1751281438711,23.24971551,2454.4,2454.3,0.02]
[1751281438906,31.51171551,2454.4,2454.3,0.02]
[1751281439109,35.52503975,2454.4,2454.3,0.02]
[1751281449623,28.94503975,2454.4,2454.3,0.02]
[1751281449831,35.52103975,2454.4,2454.3,0.02]
[1751281455803,36.49726522,2454.4,2454.3,0.02]
[1751281458906,38.12504331,2454.4,2454.3,0.02]
[1751281459109,36.49726522,2454.4,2454.3,0.02]
[1751281461135,28.23926522,2454.4,2454.3,0.02]
[1751281461322,36.49826522,2454.4,2454.3,0.02]
[1751281461514,38.12623255,2454.4,2454.3,0.02]
[1751281462846,35.70286522,2454.4,2454.3,0.02]
[1751281463664,36.92304504,2454.4,2454.3,0.02]
[1751281463866,32.9097208,2454.4,2454.3,0.02]
[1751281464436,31.68854098,2454.4,2454.3,0.02]
[1751281465667,32.9097208,2454.4,2454.3,0.02]
[1751281473760,43.0947208,2454.4,2454.3,0.02]
[1751281474489,47.3807208,2454.4,2454.3,0.02]
[1751281474694,47.10804504,2454.4,2454.3,0.02]
[1751281475102,38.85004504,2454.4,2454.3,0.02]
[1751281475304,33.06554098,2454.4,2454.3,0.02]
[1751281475477,41.31954098,2454.4,2454.3,0.02]
[1751281475807,41.86954098,2454.4,2454.3,0.02]
[1751281476676,41.87054098,2454.4,2454.3,0.02]
[1751281478585,41.86954098,2454.4,2454.3,0.02]
[1751281478779,35.29854098,2454.4,2454.3,0.02]
[1751281479112,41.86954098,2454.4,2454.3,0.02]
[1751281480614,33.61554098,2454.4,2454.3,0.02]
[1751281480809,41.86954098,2454.4,2454.3,0.02]
[1751281481712,45.83651461,2454.4,2454.3,0.02]
[1751281482213,44.86028914,2454.4,2454.3,0.02]
[1751281482921,32.63931551,2454.4,2454.3,0.02]
[1751281483091,40.88631551,2454.4,2454.3,0.02]
[1751281494634,0.01,2454.6,2454.4,10.0]
[1751281494939,3.01,2455.6,2454.7,30.0]
[1751281495142,3.01,2455.6,2455.5,4.07249032]
[1751281495340,3.01,2455.6,2455.5,0.792]
[1751281495639,3.01,2455.6,2455.5,4.86449032]
[1751281495797,0.01,2455.6,2455.5,0.792]
[1751281496430,0.01,2455.6,2455.5,5.35095438]
[1751281497627,0.01,2455.6,2455.5,1.27846406]
[1751281497831,0.01,2455.6,2455.5,5.35095438]
[1751281499635,0.01,2455.6,2455.5,5.66024721]
[1751281499836,0.01,2455.6,2455.5,1.58775689]
[1751281500043,0.01,2455.6,2455.5,1.10129283]
[1751281500645,0.01,2455.6,2454.2,4.07454401]
[1751281500646,4.63240445,2455.6,2454.9,4.07339976]
[1751281500813,0.55,2455.4,2455.0,0.7924]
[1751281501012,8.284,2455.3,2455.0,0.7924]
[1751281502823,0.01,2455.6,2455.0,1.09858414]
[1751281503051,8.283,2455.5,2455.2,4.07290014]
[1751281503814,8.283,2455.5,2455.1,0.51720642]
[1751281504016,8.283,2455.5,2455.0,4.86569334]
[1751281504231,8.283,2455.5,2455.1,4.07310256]
[1751281504431,8.283,2455.5,2455.1,4.07301306]
[1751281504661,8.283,2455.5,2455.0,4.86562943]
[1751281504815,8.283,2455.5,2455.0,0.7924]
[1751281505016,8.283,2455.5,2455.1,0.4865764]
[1751281505216,12.35556475,2455.5,2455.1,0.4865764]
[1751281507138,8.283,2455.5,2455.1,4.55971552]
[1751281508819,4.07266926,2455.4,2455.1,0.4865764]
[1751281509053,4.0728283,2455.3,2455.1,0.4865764]
[1751281509353,4.0728283,2455.3,2455.0,0.7924]
[1751281509519,4.07274148,2455.4,2455.0,0.7924]
[1751281509720,12.37557228,2455.5,2455.0,4.86571521]
[1751281510017,12.37557228,2455.5,2455.1,4.07315241]
[1751281510351,12.37557228,2455.5,2455.0,0.7924]
[1751281510352,12.37557228,2455.5,2455.0,4.86563207]
[1751281510660,12.37557228,2455.5,2455.1,4.9670568]
[1751281511357,8.303,2455.5,2455.1,4.9670568]
[1751281511522,12.37549898,2455.5,2455.1,4.96705044]
[1751281511722,4.07270555,2455.4,2455.0,0.7924]
[1751281511917,12.37556715,2455.5,2455.1,4.07315068]
[1751281512876,12.37554387,2455.5,2455.1,4.07315068]
[1751281513072,12.37554387,2455.5,2455.0,4.86563236]
[1751281514081,4.07277946,2455.4,2455.0,0.7924]
[1751281514379,8.303,2455.5,2455.0,5.35221989]
[1751281514380,12.37561882,2455.5,2455.0,5.35221989]
[1751281514676,12.37561882,2455.5,2455.0,1.27898364]
[1751281515080,4.0728258,2455.3,2455.0,1.27898364]
[1751281515277,4.07304431,2455.2,2455.0,1.27898364]
[1751281515658,4.07291533,2455.3,2455.0,1.27898364]
[1751281515953,4.0729846,2455.3,2455.1,0.53524539]
[1751281516158,4.0729846,2455.3,2455.0,1.27898364]
[1751281516362,4.07274402,2455.4,2455.0,1.27898364]
[1751281516667,12.37563713,2455.5,2455.1,4.07308856]
[1751281516865,8.303,2455.5,2455.2,4.07298518]
[1751281517071,12.3756193,2455.5,2455.0,5.35221561]
[1751281517242,12.3756193,2455.5,2455.2,4.82418804]
[1751281517243,1.697,2455.5,2455.2,4.82418804]
[1751281517444,1.697,2455.5,2455.3,4.07280886]
[1751281517647,1.697,2455.5,2455.4,4.07265618]
[1751281517845,1.697,2455.5,2455.4,4.82395618]
[1751281518056,0.02,2455.5,2455.4,4.82395618]
[1751281518259,0.02,2455.5,2455.4,6.34977575]
[1751281520187,0.02,2455.5,2455.4,2.27711957]
[1751281520881,4.07276029,2455.4,2455.2,0.8172]
[1751281521989,4.09257865,2455.5,2455.2,0.8172]
[1751281522377,0.02,2455.5,2455.2,4.89010934]
[1751281522792,0.02,2455.5,2455.3,4.07281662]
[1751281522994,0.02,2455.5,2455.2,4.89008805]
[1751281523192,0.02,2455.5,2455.3,1.5859875]
[1751281523804,0.02,2455.5,2455.2,0.8172]
[1751281524007,0.02,2455.5,2455.0,0.7966]
[1751281524008,4.07315384,2455.1,2455.0,0.7966]
[1751281524677,4.07309025,2455.2,2455.0,0.7966]
[1751281525005,4.07315384,2455.1,2455.0,0.7966]
[1751281525206,4.07306934,2455.2,2455.0,0.7966]
[1751281526400,4.07288568,2455.3,2455.0,0.7966]
[1751281526605,4.07305695,2455.2,2455.0,0.7966]
[1751281527911,4.07265618,2455.4,2455.0,0.7966]
[1751281528204,4.07294308,2455.3,2455.0,0.7966]
[1751281529112,4.07299428,2455.2,2455.0,0.7966]
[1751281529479,4.07290884,2455.3,2455.0,0.7966]
[1751281530208,4.07300533,2455.2,2455.0,0.7966]
[1751281531209,4.07273507,2455.4,2455.0,0.7966]
[1751281531210,4.07286796,2455.3,2455.0,0.7966]
[1751281531614,4.07291365,2455.3,2455.0,1.28362471]
[1751281531911,4.0730048,2455.2,2455.0,1.28362471]
[1751281532302,4.0730048,2455.2,2454.8,0.7615]
[1751281532804,4.0730048,2455.2,2454.8,4.83514326]
[1751281534585,4.09292112,2455.3,2454.8,0.7615]
[1751281534887,4.07306355,2455.2,2454.8,4.83511178]
[1751281535093,4.09290317,2455.3,2454.8,4.83511178]
[1751281535293,4.07298915,2455.2,2454.9,0.89088383]
[1751281537751,4.09287673,2455.3,2454.9,4.96436629]
[1751281538800,4.09287673,2455.3,2455.0,0.774]
[1751281539496,0.02,2455.3,2455.0,0.774]
[1751281539693,0.02,2455.3,2455.0,1.34783663]
[1751281539926,0.02,2455.3,2455.0,5.4210643]
[1751281541535,4.07310492,2455.2,2455.0,0.774]
[1751281541941,4.09291753,2455.3,2455.0,0.774]
[1751281547054,0.02,2455.3,2455.0,4.84731152]
[1751281547638,1.712,2455.3,2455.0,4.84731152]
[1751281547938,5.78483718,2455.3,2455.0,0.774]
[1751281549250,1.712,2455.3,2455.0,0.774]
[1751281550918,5.78483102,2455.3,2455.0,0.774]
[1751281551349,4.07298961,2455.2,2455.0,0.774]
[1751281552444,5.78490828,2455.3,2455.0,0.774]
[1751281553665,1.712,2455.3,2455.0,0.774]
[1751281554827,5.78489005,2455.3,2455.0,0.774]
[1751281559587,0.02,2455.3,2455.0,1.75520124]
[1751281559737,0.02,2455.3,2455.2,0.8285]
[1751281560841,0.02,2455.3,2455.2,4.90148794]
[1751281563776,0.02,2455.3,2455.2,21.26294779]
[1751281563992,0.02,2455.3,2455.2,40.08862779]
[1751281564151,0.02,2455.3,2455.2,41.94632939]
[1751281564885,0.02,2455.3,2455.2,32.51611139]
[1751281565088,0.02,2455.3,2455.2,40.73975039]
[1751281565391,0.02,2455.3,2455.2,33.48942739]
[1751281565599,0.02,2455.3,2455.2,23.12064939]
[1751281565895,0.02,2455.3,2455.2,35.61425739]
[1751281566054,0.02,2455.3,2455.2,53.12064939]
[1751281566656,0.02,2455.3,2455.2,59.70664939]
[1751281567071,0.02,2455.3,2455.2,29.70664939]
[1751281567270,0.02,2455.3,2455.2,59.70664939]
[1751281567486,0.02,2455.3,2455.2,57.88133439]
[1751281567686,0.02,2455.3,2455.2,55.87782539]
[1751281567905,0.02,2455.3,2455.2,33.14457939]
[1751281568316,0.02,2455.3,2455.2,43.78461739]
[1751281568756,0.02,2455.3,2455.2,39.84467939]
[1751281569386,0.02,2455.3,2455.2,52.52885039]
[1751281570500,0.02,2455.3,2455.2,59.54251339]
[1751281571509,0.02,2455.3,2455.2,59.70664939]
[1751281571814,0.01,2455.6,2455.5,37.38506]
[1751281572014,0.01,2455.6,2455.5,54.24280641]
[1751281572471,0.01,2455.6,2455.5,60.44695141]
[1751281572876,0.01,2455.6,2455.5,56.16292041]
[1751281573184,0.01,2455.6,2455.5,53.48756541]
[1751281573381,0.01,2455.6,2455.5,60.44695141]
[1751281575805,0.01,2455.8,2455.7,53.33946025]
[1751281576480,0.01,2455.8,2455.7,23.33946025]
[1751281576781,0.01,2455.8,2455.7,53.33946025]
[1751281577111,0.01,2455.8,2455.7,53.65097715]
[1751281577487,0.01,2455.8,2455.7,60.012437]
[1751281577797,0.01,2455.8,2455.7,60.691371]
[1751281578708,0.01,2455.8,2455.7,53.428437]
[1751281578910,0.01,2455.8,2455.7,61.701437]
[1751281582121,0.01,2456.9,2456.5,4.07083248]
[1751281582290,0.01,2456.9,2456.8,14.07033539]
[1751281582514,0.01,2456.9,2456.8,21.48373539]
[1751281582816,0.01,2456.9,2456.8,28.94653699]
[1751281583019,0.01,2456.9,2456.8,29.74653699]
[1751281583808,0.01,2456.9,2456.8,34.77708899]
[1751281584009,0.01,2456.9,2456.8,17.53743699]
[1751281584209,0.01,2456.9,2456.8,27.98493899]
[1751281584708,0.01,2456.9,2456.8,21.38293899]
[1751281584908,0.01,2456.9,2456.8,27.98693899]